[Event "28th Tamil Nadu IM Norm 2024"]
[Site "Tamil Nadu"]
[Date "2024.09.18"]
[Round "6.5"]
[White "Tejaswini G"]
[Black "Dinesh Rajan M"]
[Result "1/2-1/2"]
[WhiteElo "2135"]
[BlackElo "2258"]
[PlyCount "132"]
[EventDate "2024.09.15"]
[EventCountry "IND"]
[TimeControl "5400+30"]

1. d4 {[%emt 0:00:18]} d5 {[%emt 0:00:13]} 2. c4 {[%emt 0:00:05]} e6 {[%emt 0:00:04]} 3. Nc3 {[%emt 0:00:06]} c6 {[%emt 0:00:03]} 4. e3 {[%emt 0:00:24]} Nf6 {[%emt 0:00:17]} 5. Nf3 {[%emt 0:00:08]} Nbd7 {[%emt 0:00:06]} 6. Be2 {[%emt 0:00:08]} dxc4 {[%emt 0:01:57]} 7. a4 {[%emt 0:02:40]} Bb4 {[%emt 0:02:22]} 8. O-O {[%emt 0:00:37]} O-O {[%emt 0:01:09]} 9. Bxc4 {[%emt 0:00:21]} Qe7 {[%emt 0:03:55]} 10. Ne5 {[%emt 0:10:59]} Rd8 {[%emt 0:07:24]} 11. Qe2 {[%emt 0:04:01]} c5 {[%emt 0:04:27]} 12. Bb3 {[%emt 0:10:57]} Nb6 {[%emt 0:19:52]} 13. Rd1 {[%emt 0:01:16]} cxd4 {[%emt 0:03:48]} 14. exd4 {[%emt 0:00:48]} h6 {[%emt 0:04:16]} 15. Rd3 {[%emt 0:03:40]} Kh8 {[%emt 0:10:57]} 16. a5 {[%emt 0:06:23]} Nbd7 {[%emt 0:03:05]} 17. Rh3 {[%emt 0:05:48]} Nf8 {[%emt 0:00:50]} 18. Be3 {[%emt 0:01:57]} N6h7 {[%emt 0:04:10]} 19. Qh5 {[%emt 0:02:07]} Ng6 {[%emt 0:11:23]} 20. Bc2 {[%emt 0:13:32]} Nxe5 {[%emt 0:03:50]} 21. dxe5 {[%emt 0:14:14]} Qf8 {[%emt 0:00:27]} 22. Ne4 {[%emt 0:02:25]} Be7 {[%emt 0:00:44]} 23. Rf3 {[%emt 0:00:41]} Kg8 {[%emt 0:01:37]} 24. Nf6+ {[%emt 0:06:30]} Bxf6 {[%emt 0:00:27]} 25. exf6 {[%emt 0:00:17]} Rd5 {[%emt 0:02:23]} 26. Bxh7+ {[%emt 0:01:32]} Kxh7 {[%emt 0:00:09]} 27. fxg7 {[%emt 0:00:31]} Qxg7 {[%emt 0:00:36]} 28. Qh4 {[%emt 0:01:35]} Rf5 {[%emt 0:02:14]} 29. Rxf5 {[%emt 0:02:58]} exf5 {[%emt 0:00:02]} 30. Rd1 {[%emt 0:04:07]} Be6 {[%emt 0:00:12]} 31. h3 {[%emt 0:00:49]} Rc8 {[%emt 0:02:09]} 32. Rd8 {[%emt 0:01:39]} Rxd8 {[%emt 0:03:11]} 33. Qxd8 {[%emt 0:00:04]} Qxb2 {[%emt 0:00:11]} 34. Bd4 {[%emt 0:00:33]} Qc1+ {[%emt 0:01:45]} 35. Kh2 {[%emt 0:00:01]} Qg5 {[%emt 0:00:33]} 36. Qh8+ {[%emt 0:01:13]} Kg6 {[%emt 0:00:01]} 37. g3 {[%emt 0:02:17]} f4 {[%emt 0:02:59]} 38. g4 {[%emt 0:01:05]} f6 {[%emt 0:00:42]} 39. Kg1 {[%emt 0:00:39]} Bf7 {[%emt 0:01:00]} 40. Bc3 {[%emt 0:00:28]} f3 {[%emt 0:00:17]} 41. Qc8 {[%emt 0:00:33]} Kg7 {[%emt 0:01:11]} 42. Kh2 {[%emt 0:00:24]} Qf4+ {[%emt 0:00:07]} 43. Kg1 {[%emt 0:00:01]} Qc1+ {[%emt 0:00:47]} 44. Kh2 {[%emt 0:00:01]} Qf1 {[%emt 0:00:29]} 45. Kg3 {[%emt 0:00:36]} Qg2+ {[%emt 0:00:34]} 46. Kf4 {[%emt 0:00:01]} Qxf2 {[%emt 0:00:44]} 47. Bxf6+ {[%emt 0:01:35]} Kxf6 {[%emt 0:00:06]} 48. Qc3+ {[%emt 0:00:21]} Ke6 {[%emt 0:02:24]} 49. Qc8+ {[%emt 0:00:52]} Kd6 {[%emt 0:00:30]} 50. Qf8+ {[%emt 0:00:21]} Kc6 {[%emt 0:02:00]} 51. Qc8+ {[%emt 0:00:41]} Kd6 {[%emt 0:00:37]} 52. Qf8+ {[%emt 0:00:10]} Kc6 {[%emt 0:00:27]} 53. Qc8+ {[%emt 0:00:20]} Kb5 {[%emt 0:00:33]} 54. Qxb7+ {[%emt 0:00:09]} Kxa5 {[%emt 0:00:06]} 55. Qxf7 {[%emt 0:00:15]} Qh2+ {[%emt 0:00:54]} 56. Kxf3 {[%emt 0:00:25]} Qxh3+ {[%emt 0:00:04]} 57. Kf2 {[%emt 0:00:09]} Qh4+ {[%emt 0:00:44]} 58. Kf3 {[%emt 0:00:23]} Qh1+ {[%emt 0:00:32]} 59. Kf2 {[%emt 0:00:04]} Kb6 {[%emt 0:00:15]} 60. Qb3+ {[%emt 0:00:12]} Kc7 {[%emt 0:00:07]} 61. Qf7+ {[%emt 0:00:06]} Kb8 {[%emt 0:00:26]} 62. Qe8+ {[%emt 0:00:09]} Kb7 {[%emt 0:00:04]} 63. Qb5+ {[%emt 0:00:15]} Kc7 {[%emt 0:00:31]} 64. Qc5+ {[%emt 0:00:09]} Kb7 {[%emt 0:01:13]} 65. Qb5+ {[%emt 0:00:04]} Ka8 {[%emt 0:00:31]} 66. Qe8+ {[%emt 0:00:05]} Kb7 {[%emt 0:00:04]} 1/2-1/2

[Event "28th Tamil Nadu IM Norm 2024"]
[Site "Tamil Nadu"]
[Date "2024.09.19"]
[Round "7.1"]
[White "Dinesh Rajan M"]
[Black "Podolchenko, Evgeniy"]
[Result "0-1"]
[ECO "B12"]
[WhiteElo "2258"]
[BlackElo "2338"]
[Annotator "RC"]
[PlyCount "148"]
[EventDate "2024.09.15"]
[EventCountry "IND"]
[SourceTitle "playchess.com"]
[Source "ChessBase"]
[SourceQuality "1"]
[TimeControl "5400+30"]

1. e4 {[%emt 0:00:17]} c6 {[%emt 0:00:50]} 2. d4 {[%emt 0:00:27]} d5 {[%emt 0:00:03]} 3. e5 {[%emt 0:00:15]} Bf5 {[%emt 0:00:02]} 4. g4 {[%emt 0:00:30]} Bd7 {[%emt 0:00:05]} 5. Nc3 {[%emt 0:00:36]} h5 {[%emt 0:01:53]} 6. gxh5 {[%emt 0:02:39]} Bf5 {[%emt 0:00:26]} 7. Nge2 {[%emt 0:07:12]} Bg4 {[%emt 0:23:02]} 8. Qd3 {[%emt 0:00:37]} e6 {[%emt 0:01:20]} 9. Ng3 {[%emt 0:06:18]} Bxh5 {[%emt 0:04:00]} 10. Nxh5 {[%emt 0:00:15]} Rxh5 {[%emt 0:00:02]} 11. Be2 {[%emt 0:02:11]} Rh8 {[%emt 0:00:12]} 12. Bd2 {[%emt 0:05:54]} Qh4 {[%emt 0:07:57]} 13. O-O-O {[%emt 0:01:17]} Ne7 {[%emt 0:00:21]} 14. Rdg1 {[%emt 0:12:27]} Nf5 {[%emt 0:00:52]} 15. Bg4 {[%emt 0:18:56]} g6 {[%emt 0:00:07]} 16. Kb1 {[%emt 0:02:48]} Be7 {[%emt 0:16:48]} 17. Ne2 {[%emt 0:05:32]} Nd7 {[%emt 0:04:48]} 18. f4 {[%emt 0:00:32]} O-O-O {[%emt 0:02:26]} 19. Rg2 {[%emt 0:11:12]} Qh7 {[%emt 0:09:30]} 20. Ng1 {[%emt 0:01:23]} Nh4 {[%emt 0:02:30]} 21. Re2 {[%emt 0:02:32]} Qg7 {[%emt 0:03:28]} 22. Be1 {[%emt 0:01:25]} Rh7 {[%emt 0:00:22]} 23. Nh3 {[%emt 0:02:41]} Rdh8 {[%emt 0:01:12]} 24. Rg1 {[%emt 0:04:29]} Qf8 {[%emt 0:00:24]} 25. Bf2 {[%emt 0:02:18]} Qd8 {[%emt 0:01:04]} 26. Rg3 {[%emt 0:00:48]} Nf5 {[%emt 0:00:16]} 27. Bxf5 {[%emt 0:03:41]} gxf5 {[%emt 0:00:03]} 28. Bg1 {[%emt 0:00:30]} Nf8 {[%emt 0:00:28]} 29. Qf3 {[%emt 0:01:08]} Ng6 {[%emt 0:00:44]} 30. Re3 {[%emt 0:00:38]} Qa5 {[%emt 0:01:21]} 31. Qf1 {[%emt 0:00:42]} Kd7 {[%emt 0:01:32]} 32. Bf2 {[%emt 0:00:38]} b5 {[%emt 0:01:59]} 33. Be1 {[%emt 0:01:05]} Qb6 {[%emt 0:00:06]} 34. Rd3 {[%emt 0:00:27]} a5 {[%emt 0:01:06]} 35. Bd2 {[%emt 0:00:43]} b4 {[%emt 0:00:37]} 36. Qe2 {[%emt 0:00:49]} Qb5 {[%emt 0:00:13]} 37. Qd1 {[%emt 0:00:28]} Rh4 {[%emt 0:00:34]} 38. Bc1 {[%emt 0:00:40]} Qc4 {[%emt 0:01:05]} 39. Rdf3 {[%emt 0:00:30]} Bd8 {[%emt 0:02:47]} 40. Rd3 {[%emt 0:00:51]} R4h5 {[%emt 0:00:22]} 41. b3 {[%emt 0:01:00]} Qb5 {[%emt 0:00:04]} 42. a4 {[%emt 0:00:20]} bxa3 {[%emt 0:00:18]} 43. Bxa3 {[%emt 0:00:06]} Rh4 {[%emt 0:01:04]} 44. Qd2 {[%emt 0:00:39]} Bb6 {[%emt 0:02:44]} 45. Rdf3 {[%emt 0:01:25]} Rxh3 {[%emt 0:01:51]} 46. Rxh3 {[%emt 0:00:05]} Rxh3 {[%emt 0:00:03]} 47. c4 {[%emt 0:00:05]} dxc4 {[%emt 0:00:17]} 48. Rxh3 {[%emt 0:00:04]} cxb3 {[%emt 0:00:14]} 49. Rh7 {[%emt 0:00:41]} Ke8 {[%emt 0:01:48]} 50. h4 {[%emt 0:00:49]} Qf1+ {[%emt 0:02:01]} 51. Kb2 {[%emt 0:00:01]} Nxf4 {[%emt 0:03:18]} 52. Rh8+ {[%emt 0:00:13]} Kd7 {[%emt 0:00:02]} 53. Kxb3 {[%emt 0:00:40]} Qb5+ {[%emt 0:00:34]} 54. Kc2 {[%emt 0:00:13]} Qa4+ {[%emt 0:00:17]} 55. Kb1 {[%emt 0:00:30]} Qxa3 {[%emt 0:01:09]} 56. Qxf4 {[%emt 0:00:02]} Qd3+ {[%emt 0:00:12]} 57. Kc1 {[%emt 0:00:10]} Bxd4 {[%emt 0:00:12]} 58. Qh2 {[%emt 0:01:44]} Qa3+ {[%emt 0:00:12]} 59. Kb1 {[%emt 0:02:20]} Qb3+ {[%emt 0:00:07]} 60. Kc1 {[%emt 0:00:15]} Be3+ {[%emt 0:00:05]} 61. Qd2+ {[%emt 0:00:04]} Bxd2+ {[%emt 0:00:06]} 62. Kxd2 {[%emt 0:00:04]} Qb2+ {[%emt 0:00:06]} 63. Kd3 {[%emt 0:00:04]} Qxe5 {[%emt 0:00:06]} 64. Ra8 {[%emt 0:00:13]} Qe4+ {[%emt 0:00:08]} 65. Kc3 {[%emt 0:00:06]} Qxh4 {[%emt 0:00:05]} 66. Ra7+ {[%emt 0:00:24]} Kd6 {[%emt 0:00:06]} 67. Rxf7 {[%emt 0:00:05]} Qb4+ {[%emt 0:00:07]} 68. Kd3 {[%emt 0:00:04]} a4 {[%emt 0:00:06]} 69. Rf8 {[%emt 0:00:16]} Ke5 {[%emt 0:00:06]} 70. Ra8 {[%emt 0:00:05]} c5 {[%emt 0:00:06]} 71. Rh8 {[%emt 0:00:04]} a3 {[%emt 0:00:05]} 72. Kc2 {[%emt 0:00:15]} Qb2+ {[%emt 0:00:14]} 73. Kd3 {[%emt 0:00:03]} a2 {[%emt 0:00:08]} 74. Rh3 {[%emt 0:01:38]} Qb3+ {[%emt 0:07:45]} 0-1

[Event "28th Tamil Nadu IM Norm 2024"]
[Site "Tamil Nadu"]
[Date "2024.09.19"]
[Round "7.2"]
[White "Annageldyev, Orazly"]
[Black "Tejaswini G"]
[Result "0-1"]
[ECO "D00"]
[WhiteElo "2105"]
[BlackElo "2135"]
[Annotator "RC"]
[PlyCount "64"]
[EventDate "2024.09.15"]
[EventCountry "IND"]
[SourceTitle "playchess.com"]
[Source "ChessBase"]
[SourceQuality "1"]
[TimeControl "5400+30"]

1. d4 {[%emt 0:00:15]} Nf6 {[%emt 0:00:25]} 2. Nf3 {[%emt 0:00:10]} g6 {[%emt 0:00:05]} 3. Nc3 {[%emt 0:00:57]} d5 {[%emt 0:00:07]} 4. Bg5 {[%emt 0:01:16]} Bg7 {[%emt 0:00:09]} 5. e3 {[%emt 0:00:14]} O-O {[%emt 0:00:17]} 6. Bd3 {[%emt 0:00:40]} c5 {[%emt 0:00:39]} 7. O-O {[%emt 0:01:16]} cxd4 {[%emt 0:11:06]} 8. exd4 {[%emt 0:00:24]} Nc6 {[%emt 0:00:09]} 9. h3 {[%emt 0:01:14]} Bf5 {[%emt 0:02:49]} 10. Re1 {[%emt 0:03:30]} Nb4 {[%emt 0:04:32]} 11. a3 {[%emt 0:02:26]} Nxd3 {[%emt 0:00:52]} 12. cxd3 {[%emt 0:00:22]} h6 {[%emt 0:05:56]} 13. Be3 {[%emt 0:02:34]} g5 {[%emt 0:02:24]} 14. Ne5 {[%emt 0:01:37]} Nd7 {[%emt 0:03:26]} 15. Nxd7 {[%emt 0:10:58]} Qxd7 {[%emt 0:02:06]} 16. Qb3 {[%emt 0:01:06]} e6 {[%emt 0:01:05]} 17. Na4 {[%emt 0:06:07]} b6 {[%emt 0:00:36]} 18. Rac1 {[%emt 0:00:25]} Rfc8 {[%emt 0:01:03]} 19. Nc3 {[%emt 0:00:57]} Qb7 {[%emt 0:13:53]} 20. a4 {[%emt 0:05:21]} Bxd3 {[%emt 0:02:47]} 21. a5 {[%emt 0:06:44]} Bc4 {[%emt 0:11:06]} 22. Qa4 {[%emt 0:08:34]} bxa5 {[%emt 0:01:38]} 23. Qxa5 {[%emt 0:03:27]} Qb6 {[%emt 0:01:09]} 24. Qa1 {[%emt 0:07:29]} Bd3 {[%emt 0:16:37]} 25. Na4 {[%emt 0:01:13]} Qb4 {[%emt 0:00:09]} 26. Nc5 {[%emt 0:07:03]} Bg6 {[%emt 0:00:12]} 27. Na6 {[%emt 0:02:28]} Qb6 {[%emt 0:01:31]} 28. Nc5 {[%emt 0:00:23]} Qb5 {[%emt 0:01:05]} 29. Na4 {[%emt 0:14:11]} Rc4 {[%emt 0:02:53]} 30. Nc3 {[%emt 0:00:44]} Qb3 {[%emt 0:00:59]} 31. Red1 {[%emt 0:00:49]} a5 {[%emt 0:00:29]} 32. Ne2 {[%emt 0:02:37]} Ra4 {[%emt 0:00:24]} 0-1

[Event "28th Tamil Nadu IM Norm 2024"]
[Site "Tamil Nadu"]
[Date "2024.09.19"]
[Round "7.3"]
[White "Vahidov, Tair"]
[Black "Aakash G"]
[Result "0-1"]
[ECO "D35"]
[WhiteElo "2345"]
[BlackElo "2279"]
[Annotator "RC"]
[PlyCount "98"]
[EventDate "2024.09.15"]
[EventCountry "IND"]
[SourceTitle "playchess.com"]
[Source "ChessBase"]
[SourceQuality "1"]
[TimeControl "5400+30"]

1. c4 {[%emt 0:04:51]} e6 {[%emt 0:00:06]} 2. Nc3 {[%emt 0:00:05]} d5 {[%emt 0:00:50]} 3. d4 {[%emt 0:00:07]} Be7 {[%emt 0:00:05]} 4. cxd5 {[%emt 0:02:09]} exd5 {[%emt 0:00:03]} 5. Bf4 {[%emt 0:00:08]} Nf6 {[%emt 0:00:35]} 6. e3 {[%emt 0:01:27]} O-O {[%emt 0:01:06]} 7. Be2 {[%emt 0:12:41]} c6 {[%emt 0:04:13]} 8. Qc2 {[%emt 0:06:05]} Nbd7 {[%emt 0:01:48]} 9. Nf3 {[%emt 0:11:25]} Re8 {[%emt 0:03:37]} 10. O-O {[%emt 0:00:52]} Nf8 {[%emt 0:00:58]} 11. Ne5 {[%emt 0:03:04]} g6 {[%emt 0:02:13]} 12. a3 {[%emt 0:12:01]} Ne6 {[%emt 0:01:30]} 13. Bg3 {[%emt 0:06:33]} Ng7 {[%emt 0:00:40]} 14. b4 {[%emt 0:00:12]} Bd6 {[%emt 0:04:08]} 15. Nd3 {[%emt 0:05:35]} Bf5 {[%emt 0:00:46]} 16. b5 {[%emt 0:00:42]} Bxg3 {[%emt 0:05:59]} 17. hxg3 {[%emt 0:00:22]} cxb5 {[%emt 0:00:08]} 18. Qb2 {[%emt 0:17:24]} Rc8 {[%emt 0:08:07]} 19. Rfc1 {[%emt 0:02:10]} Ne6 {[%emt 0:17:06]} 20. Qxb5 {[%emt 0:02:34]} Rc7 {[%emt 0:01:55]} 21. Ne5 {[%emt 0:01:17]} a6 {[%emt 0:03:27]} 22. Qb2 {[%emt 0:01:34]} h5 {[%emt 0:01:02]} 23. Na4 {[%emt 0:01:21]} Ne4 {[%emt 0:01:27]} 24. Rxc7 {[%emt 0:00:10]} Qxc7 {[%emt 0:00:21]} 25. Rc1 {[%emt 0:00:07]} Qe7 {[%emt 0:00:30]} 26. Nb6 {[%emt 0:01:00]} Rd8 {[%emt 0:06:51]} 27. Qb3 {[%emt 0:01:29]} Qd6 {[%emt 0:03:06]} 28. Nc8 {[%emt 0:01:01]} Nxd4 {[%emt 0:00:45]} 29. exd4 {[%emt 0:02:01]} Bxc8 {[%emt 0:00:08]} 30. Bf3 {[%emt 0:01:08]} Be6 {[%emt 0:02:17]} 31. a4 {[%emt 0:00:38]} Qe7 {[%emt 0:04:26]} 32. Qb6 {[%emt 0:02:27]} Rd6 {[%emt 0:04:25]} 33. Qa7 {[%emt 0:00:39]} Kg7 {[%emt 0:02:20]} 34. a5 {[%emt 0:00:34]} Nd2 {[%emt 0:00:37]} 35. Rc2 {[%emt 0:00:53]} Nb3 {[%emt 0:00:21]} 36. Nd3 {[%emt 0:01:11]} Nxa5 {[%emt 0:00:15]} 37. Nf4 {[%emt 0:00:07]} Bf5 {[%emt 0:00:43]} 38. Re2 {[%emt 0:00:30]} Qd7 {[%emt 0:00:07]} 39. Qc5 {[%emt 0:00:42]} b6 {[%emt 0:00:28]} 40. Qa3 {[%emt 0:00:28]} Bg4 {[%emt 0:01:20]} 41. Qa1 {[%emt 0:00:39]} Bxf3 {[%emt 0:02:36]} 42. gxf3 {[%emt 0:00:01]} h4 {[%emt 0:00:33]} 43. Qe1 {[%emt 0:00:23]} hxg3 {[%emt 0:00:06]} 44. fxg3 {[%emt 0:00:18]} Qa4 {[%emt 0:00:11]} 45. Re7 {[%emt 0:00:59]} Nc6 {[%emt 0:01:02]} 46. Rc7 {[%emt 0:00:20]} Qxd4+ {[%emt 0:00:07]} 47. Kg2 {[%emt 0:00:01]} Qb2+ {[%emt 0:00:30]} 48. Kh3 {[%emt 0:00:12]} Qe5 {[%emt 0:01:04]} 49. Qc1 {[%emt 0:00:12]} Ne7 {[%emt 0:00:33]} 0-1

[Event "28th Tamil Nadu IM Norm 2024"]
[Site "Tamil Nadu"]
[Date "2024.09.19"]
[Round "7.4"]
[White "Manik, Mikulas"]
[Black "Sriram Adarsh Uppala"]
[Result "0-1"]
[ECO "B12"]
[WhiteElo "2316"]
[BlackElo "2333"]
[Annotator "RC"]
[PlyCount "46"]
[EventDate "2024.09.15"]
[EventCountry "IND"]
[SourceTitle "playchess.com"]
[Source "ChessBase"]
[SourceQuality "1"]
[TimeControl "5400+30"]

1. e4 {[%emt 0:00:03]} c6 {[%emt 0:00:12]} 2. d4 {[%emt 0:00:02]} d5 {[%emt 0:00:07]} 3. e5 {[%emt 0:00:01]} Bf5 {[%emt 0:01:40]} 4. g4 {[%emt 0:00:02]} Bd7 {[%emt 0:00:38]} 5. Be3 {[%emt 0:00:03]} c5 {[%emt 0:02:11]} 6. dxc5 {[%emt 0:04:22]} e6 {[%emt 0:07:15]} 7. Nf3 {[%emt 0:00:10]} Qc7 {[%emt 0:01:31]} 8. c4 {[%emt 0:17:36]} dxc4 {[%emt 0:04:03]} 9. Nbd2 {[%emt 0:01:02]} c3 {[%emt 0:15:23]} 10. bxc3 {[%emt 0:00:14]} Bxc5 {[%emt 0:00:55]} 11. Ne4 {[%emt 0:11:35]} Bxe3 {[%emt 0:04:30]} 12. fxe3 {[%emt 0:00:08]} Bc6 {[%emt 0:03:16]} 13. Nd6+ {[%emt 0:00:55]} Ke7 {[%emt 0:05:20]} 14. e4 {[%emt 0:07:42]} Nd7 {[%emt 0:07:10]} 15. Qd2 {[%emt 0:05:47]} f6 {[%emt 0:03:19]} 16. Bc4 {[%emt 0:09:04]} Qa5 {[%emt 0:10:42]} 17. Nxb7 {[%emt 0:04:46]} Bxb7 {[%emt 0:01:08]} 18. Qd6+ {[%emt 0:02:56]} Ke8 {[%emt 0:05:22]} 19. Qxe6+ {[%emt 0:05:30]} Ne7 {[%emt 0:01:54]} 20. Qf7+ {[%emt 0:05:17]} Kd8 {[%emt 0:00:01]} 21. Rd1 {[%emt 0:00:43]} Bxe4 {[%emt 0:04:49]} 22. Rxd7+ Kxd7 {[%emt 0:00:30]} 23. Kf2 {[%emt 0:15:39]} Qc5+ {[%emt 0:00:30]} 0-1

[Event "28th Tamil Nadu IM Norm 2024"]
[Site "Tamil Nadu"]
[Date "2024.09.19"]
[Round "7.5"]
[White "Dhruva Thota"]
[Black "Gochelashvili, David"]
[Result "1-0"]
[ECO "B77"]
[WhiteElo "2342"]
[BlackElo "2280"]
[Annotator "RC"]
[PlyCount "49"]
[EventDate "2024.09.15"]
[EventCountry "IND"]
[SourceTitle "playchess.com"]
[Source "ChessBase"]
[SourceQuality "1"]
[TimeControl "5400+30"]

1. e4 {[%emt 0:00:13]} c5 {[%emt 0:00:11]} 2. Nf3 {[%emt 0:00:07]} d6 {[%emt 0:00:12]} 3. d4 {[%emt 0:00:12]} cxd4 {[%emt 0:00:14]} 4. Nxd4 {[%emt 0:00:10]} Nf6 {[%emt 0:00:08]} 5. Nc3 {[%emt 0:00:10]} g6 {[%emt 0:00:08]} 6. Be3 {[%emt 0:00:31]} Nc6 {[%emt 0:00:23]} 7. f3 {[%emt 0:00:48]} Bg7 {[%emt 0:05:13]} 8. Qd2 {[%emt 0:00:13]} O-O {[%emt 0:00:05]} 9. Bc4 {[%emt 0:00:55]} Bd7 {[%emt 0:04:10]} 10. g4 {[%emt 0:00:11]} Rb8 {[%emt 0:16:00]} 11. Bb3 {[%emt 0:14:14]} b5 {[%emt 0:03:49]} 12. Nxc6 {[%emt 0:05:41]} Bxc6 {[%emt 0:00:07]} 13. Bxa7 {[%emt 0:02:19]} b4 {[%emt 0:00:05]} 14. Ne2 {[%emt 0:12:03]} Rb7 {[%emt 0:04:11]} 15. Be3 {[%emt 0:02:15]} Qa5 {[%emt 0:13:53]} 16. Nd4 {[%emt 0:11:13]} Bd7 {[%emt 0:11:58]} 17. Bh6 {[%emt 0:11:51]} Rc8 {[%emt 0:05:57]} 18. h4 {[%emt 0:05:14]} Ba4 {[%emt 0:10:58]} 19. Bxg7 {[%emt 0:06:38]} Kxg7 {[%emt 0:00:02]} 20. Bxa4 {[%emt 0:01:01]} Qxa4 {[%emt 0:00:06]} 21. h5 {[%emt 0:01:57]} e5 {[%emt 0:09:10]} 22. hxg6 {[%emt 0:08:08]} fxg6 {[%emt 0:00:52]} 23. Nf5+ {[%emt 0:01:52]} gxf5 {[%emt 0:07:34]} 24. Qg5+ {[%emt 0:01:50]} Kf7 {[%emt 0:00:21]} 25. Rh6 {[%emt 0:01:06]} 1-0